[Event "Titled Tuesday Blitz July 11 Late 2023"]
[White "Khairat , Ahmed"]
[Black "Sala, Giulia"]
[WhiteFideId "10624171"]
[BlackFideId "2840451"]
[WhiteElo "2412"]
[BlackElo "2218"]
[Result "0-1"]
[Round "3"]
[TimeControl "180+2"]
[Date "2023.07.11"]
[WhiteClock "0:01:17"]
[BlackClock "0:01:45"]
[Board "170"]

1. e4 {[%clk 0:03:00]}  e6 {[%clk 0:02:58]} 2. d4 {[%clk 0:03:00]}  d5 {[%clk 0:02:59]} 3. Nc3 {[%clk 0:03:01]}  Nf6 {[%clk 0:02:58]} 4. e5 {[%clk 0:03:01]}  Nfd7 {[%clk 0:02:58]} 5. f4 {[%clk 0:03:02]}  c5 {[%clk 0:02:59]} 6. Nf3 {[%clk 0:03:03]}  Nc6 {[%clk 0:02:59]} 7. Be3 {[%clk 0:03:03]}  Qb6 {[%clk 0:03:00]} 8. Qd2 {[%clk 0:03:03]}  a6 {[%clk 0:02:57]} 9. Be2 {[%clk 0:03:00]}  Qxb2 {[%clk 0:02:56]} 10. O-O {[%clk 0:02:57]}  Qa3 {[%clk 0:02:55]} 11. Rab1 {[%clk 0:02:55]}  Qa5 {[%clk 0:02:55]} 12. f5 {[%clk 0:02:49]}  cxd4 {[%clk 0:02:49]} 13. Nxd4 {[%clk 0:02:50]}  Nxd4 {[%clk 0:02:45]} 14. Bxd4 {[%clk 0:02:50]}  Bc5 {[%clk 0:02:45]} 15. fxe6 {[%clk 0:02:48]}  fxe6 {[%clk 0:02:45]} 16. Kh1 {[%clk 0:02:38]}  Bxd4 {[%clk 0:02:38]} 17. Qxd4 {[%clk 0:02:39]}  Qc5 {[%clk 0:02:39]} 18. Qg4 {[%clk 0:02:34]}  Qxc3 {[%clk 0:02:30]} 19. Qxg7 {[%clk 0:02:34]}  Qxe5 {[%clk 0:02:30]} 20. Qf7+ {[%clk 0:02:34]}  Kd8 {[%clk 0:02:31]} 21. Rfe1 {[%clk 0:02:24]}  Qf6 {[%clk 0:02:28]} 22. Qh5 {[%clk 0:02:24]}  Qg6 {[%clk 0:02:26]} 23. Qf3 {[%clk 0:02:24]}  Rf8 {[%clk 0:02:24]} 24. Qa3 {[%clk 0:02:23]}  Rf2 {[%clk 0:02:21]} 25. Bf3 {[%clk 0:02:21]}  b6 {[%clk 0:02:02]} 26. c4 {[%clk 0:02:20]}  Bb7 {[%clk 0:02:02]} 27. cxd5 {[%clk 0:02:14]}  Bxd5 {[%clk 0:02:03]} 28. Bxd5 {[%clk 0:02:08]}  exd5 {[%clk 0:02:04]} 29. Qh3 {[%clk 0:02:07]}  Rc8 {[%clk 0:01:58]} 30. Rbd1 {[%clk 0:01:58]}  Rcc2 {[%clk 0:01:57]} 31. Rxd5 {[%clk 0:01:58]}  Qxg2+ {[%clk 0:01:54]} 32. Qxg2 {[%clk 0:01:58]}  Rxg2 {[%clk 0:01:55]} 33. Rh5 {[%clk 0:01:53]}  Rxa2 {[%clk 0:01:52]} 34. Rxh7 {[%clk 0:01:53]}  Rge2 {[%clk 0:01:48]} 35. Rd1 {[%clk 0:01:52]}  Rad2 {[%clk 0:01:49]} 36. Rg1 {[%clk 0:01:50]}  a5 {[%clk 0:01:47]} 37. Rb1 {[%clk 0:01:47]}  a4 {[%clk 0:01:46]} 38. Rh4 {[%clk 0:01:46]}  a3 {[%clk 0:01:45]} 39. Ra1 {[%clk 0:01:33]}  a2 {[%clk 0:01:45]} 40. Kg1 {[%clk 0:01:33]}  Rb2 {[%clk 0:01:44]} 41. Kf1 {[%clk 0:01:17]}  Rec2 {[%clk 0:01:45]} 0-1


[Site "https://www.chess.com"]

[Event "Titled Tuesday Blitz July 11 Late 2023"]
[White "Bazzano, Sebastian"]
[Black "Kanyamarala, Trisha"]
[WhiteFideId "104566"]
[BlackFideId "45004722"]
[WhiteElo "2209"]
[BlackElo "2407"]
[Result "1-0"]
[Round "3"]
[TimeControl "180+2"]
[Date "2023.07.11"]
[WhiteClock "0:00:01"]
[BlackClock "0:01:29"]
[Board "173"]

1. d4 {[%clk 0:02:59]}  Nf6 {[%clk 0:02:56]} 2. Bf4 {[%clk 0:02:58]}  d5 {[%clk 0:02:56]} 3. e3 {[%clk 0:02:53]}  c5 {[%clk 0:02:56]} 4. c3 {[%clk 0:02:53]}  e6 {[%clk 0:02:56]} 5. Nd2 {[%clk 0:02:52]}  Nc6 {[%clk 0:02:56]} 6. Ngf3 {[%clk 0:02:52]}  Bd6 {[%clk 0:02:57]} 7. Bg3 {[%clk 0:02:51]}  O-O {[%clk 0:02:57]} 8. Bd3 {[%clk 0:02:51]}  Qe7 {[%clk 0:02:57]} 9. O-O {[%clk 0:02:38]}  e5 {[%clk 0:02:57]} 10. dxe5 {[%clk 0:02:32]}  Nxe5 {[%clk 0:02:57]} 11. Nxe5 {[%clk 0:02:32]}  Bxe5 {[%clk 0:02:58]} 12. Bxe5 {[%clk 0:02:32]}  Qxe5 {[%clk 0:02:58]} 13. Nf3 {[%clk 0:02:33]}  Qc7 {[%clk 0:02:58]} 14. h3 {[%clk 0:02:30]}  h6 {[%clk 0:02:57]} 15. Rc1 {[%clk 0:02:24]}  Be6 {[%clk 0:02:57]} 16. Qe2 {[%clk 0:02:16]}  Rfe8 {[%clk 0:02:55]} 17. Rfd1 {[%clk 0:02:13]}  Rad8 {[%clk 0:02:54]} 18. a3 {[%clk 0:01:52]}  Ne4 {[%clk 0:02:40]} 19. c4 {[%clk 0:01:18]}  f5 {[%clk 0:02:30]} 20. cxd5 {[%clk 0:01:12]}  Bxd5 {[%clk 0:02:30]} 21. Bc4 {[%clk 0:01:11]}  Bxc4 {[%clk 0:02:30]} 22. Qxc4+ {[%clk 0:01:11]}  Kh7 {[%clk 0:02:30]} 23. Rxd8 {[%clk 0:00:52]}  Rxd8 {[%clk 0:02:29]} 24. Qe6 {[%clk 0:00:35]}  Qb6 {[%clk 0:02:22]} 25. Qxf5+ {[%clk 0:00:32]}  Qg6 {[%clk 0:02:21]} 26. Qf4 {[%clk 0:00:16]}  b6 {[%clk 0:02:18]} 27. Ne5 {[%clk 0:00:12]}  Qg5 {[%clk 0:02:04]} 28. Qxe4+ {[%clk 0:00:12]}  Kg8 {[%clk 0:02:05]} 29. Nf3 {[%clk 0:00:10]}  Qf6 {[%clk 0:02:04]} 30. Rc2 {[%clk 0:00:10]}  Qd6 {[%clk 0:02:03]} 31. Rd2 {[%clk 0:00:10]}  Qf6 {[%clk 0:02:03]} 32. Rxd8+ {[%clk 0:00:09]}  Qxd8 {[%clk 0:02:04]} 33. Qe6+ {[%clk 0:00:09]}  Kh7 {[%clk 0:02:03]} 34. Ne5 {[%clk 0:00:09]}  Qd1+ {[%clk 0:02:03]} 35. Kh2 {[%clk 0:00:09]}  Qh5 {[%clk 0:02:00]} 36. g4 {[%clk 0:00:08]}  Qh4 {[%clk 0:01:59]} 37. Qf5+ {[%clk 0:00:08]}  Kg8 {[%clk 0:01:59]} 38. Qf7+ {[%clk 0:00:08]}  Kh7 {[%clk 0:01:58]} 39. Ng6 {[%clk 0:00:04]}  Qg5 {[%clk 0:01:55]} 40. Ne7 {[%clk 0:00:03]}  Qe5+ {[%clk 0:01:35]} 41. f4 {[%clk 0:00:02]}  Qxb2+ {[%clk 0:01:34]} 42. Kg3 {[%clk 0:00:02]}  Qe2 {[%clk 0:01:29]} 43. Qg8# {[%clk 0:00:01]} 1-0


[Site "https://www.chess.com"]

[Event "Titled Tuesday Blitz July 11 Late 2023"]
[White "Carrasco Miranda, Andres"]
[Black "KSho99"]
[WhiteFideId "3405990"]
[WhiteElo "2406"]
[BlackElo "2208"]
[Result "0-1"]
[Round "3"]
[TimeControl "180+2"]
[Date "2023.07.11"]
[WhiteClock "0:00:16"]
[BlackClock "0:00:07"]
[Board "174"]

1. d4 {[%clk 0:03:00]}  d5 {[%clk 0:02:46]} 2. c4 {[%clk 0:02:59]}  dxc4 {[%clk 0:02:45]} 3. e4 {[%clk 0:02:59]}  b5 {[%clk 0:02:45]} 4. a4 {[%clk 0:02:58]}  c6 {[%clk 0:02:45]} 5. Nf3 {[%clk 0:02:58]}  e6 {[%clk 0:02:34]} 6. b3 {[%clk 0:02:57]}  Nf6 {[%clk 0:02:22]} 7. bxc4 {[%clk 0:02:50]}  Nxe4 {[%clk 0:02:18]} 8. axb5 {[%clk 0:02:50]}  cxb5 {[%clk 0:02:12]} 9. cxb5 {[%clk 0:02:50]}  Bb4+ {[%clk 0:02:10]} 10. Nbd2 {[%clk 0:02:49]}  O-O {[%clk 0:01:48]} 11. Bd3 {[%clk 0:02:48]}  Nxd2 {[%clk 0:01:45]} 12. Bxd2 {[%clk 0:02:49]}  Bxd2+ {[%clk 0:01:44]} 13. Qxd2 {[%clk 0:02:50]}  Bb7 {[%clk 0:01:38]} 14. Ng5 {[%clk 0:02:41]}  h6 {[%clk 0:01:27]} 15. Be4 {[%clk 0:02:37]}  Qd7 {[%clk 0:00:52]} 16. Bxb7 {[%clk 0:01:25]}  Qxb7 {[%clk 0:00:51]} 17. Nf3 {[%clk 0:01:19]}  Qxb5 {[%clk 0:00:51]} 18. Qe2 {[%clk 0:01:14]}  Qxe2+ {[%clk 0:00:40]} 19. Kxe2 {[%clk 0:01:15]}  Nc6 {[%clk 0:00:39]} 20. Rhc1 {[%clk 0:01:11]}  Rfc8 {[%clk 0:00:27]} 21. Rc4 {[%clk 0:01:02]}  Kf8 {[%clk 0:00:18]} 22. Ra6 {[%clk 0:00:44]}  Ne7 {[%clk 0:00:10]} 23. Rca4 {[%clk 0:00:44]}  Rc7 {[%clk 0:00:08]} 24. Ne5 {[%clk 0:00:43]}  f6 {[%clk 0:00:03]} 25. Nd3 {[%clk 0:00:43]}  Kf7 {[%clk 0:00:03]} 26. Nc5 {[%clk 0:00:42]}  Rc6 {[%clk 0:00:02]} 27. Rxa7 {[%clk 0:00:41]}  Rxa7 {[%clk 0:00:03]} 28. Rxa7 {[%clk 0:00:42]}  Rd6 {[%clk 0:00:03]} 29. Nb3 {[%clk 0:00:29]}  Kf8 {[%clk 0:00:02]} 30. g3 {[%clk 0:00:24]}  Nf5 {[%clk 0:00:02]} 31. Kd3 {[%clk 0:00:23]}  Ne7 {[%clk 0:00:02]} 32. Kc4 {[%clk 0:00:22]}  Rc6+ {[%clk 0:00:02]} 33. Nc5 {[%clk 0:00:21]}  Nd5 {[%clk 0:00:01]} 34. Kb5 {[%clk 0:00:20]}  Rd6 {[%clk 0:00:01]} 35. f4 {[%clk 0:00:16]}  Nc3+ {[%clk 0:00:02]} 36. Kc4 {[%clk 0:00:16]}  Ne2 {[%clk 0:00:02]} 37. Ne4 {[%clk 0:00:13]}  Rxd4+ {[%clk 0:00:02]} 38. Kc5 {[%clk 0:00:12]}  Rxe4 {[%clk 0:00:02]} 39. Ra8+ {[%clk 0:00:12]}  Kf7 {[%clk 0:00:02]} 40. Ra7+ {[%clk 0:00:13]}  Kg6 {[%clk 0:00:03]} 41. h4 {[%clk 0:00:14]}  Re3 {[%clk 0:00:03]} 42. h5+ {[%clk 0:00:13]}  Kxh5 {[%clk 0:00:03]} 43. Rxg7 {[%clk 0:00:14]}  Nxg3 {[%clk 0:00:02]} 44. Rf7 {[%clk 0:00:12]}  f5 {[%clk 0:00:02]} 45. Rf6 {[%clk 0:00:12]}  Re4 {[%clk 0:00:02]} 46. Kd6 {[%clk 0:00:12]}  Ne2 {[%clk 0:00:02]} 47. Rxe6 {[%clk 0:00:12]}  Rxe6+ {[%clk 0:00:03]} 48. Kxe6 {[%clk 0:00:12]}  Kg4 {[%clk 0:00:03]} 49. Kf6 {[%clk 0:00:13]}  Nxf4 {[%clk 0:00:04]} 50. Ke5 {[%clk 0:00:12]}  Ng2 {[%clk 0:00:04]} 51. Kd4 {[%clk 0:00:13]}  f4 {[%clk 0:00:05]} 52. Kd3 {[%clk 0:00:14]}  Kg3 {[%clk 0:00:05]} 53. Ke2 {[%clk 0:00:15]}  f3+ {[%clk 0:00:06]} 54. Kf1 {[%clk 0:00:16]}  Ne3+ {[%clk 0:00:06]} 55. Kg1 {[%clk 0:00:17]}  f2+ {[%clk 0:00:06]} 56. Kh1 {[%clk 0:00:16]}  f1=Q# {[%clk 0:00:07]} 0-1


[Site "https://www.chess.com"]

[Event "Titled Tuesday Blitz July 11 Late 2023"]
[White "Lalanne, Pablo"]
[Black "Osmonbekov, Talaibek"]
[WhiteFideId "112151"]
[BlackFideId "2017253"]
[WhiteElo "2405"]
[BlackElo "2208"]
[Result "1-0"]
[Round "3"]
[TimeControl "180+2"]
[Date "2023.07.11"]
[WhiteClock "0:01:37"]
[BlackClock "0:00:26"]
[Board "175"]

1. e4 {[%clk 0:03:00]}  c5 {[%clk 0:02:59]} 2. Nf3 {[%clk 0:03:01]}  d6 {[%clk 0:03:00]} 3. d4 {[%clk 0:03:01]}  cxd4 {[%clk 0:03:01]} 4. Nxd4 {[%clk 0:03:02]}  Nf6 {[%clk 0:03:01]} 5. Nc3 {[%clk 0:03:02]}  g6 {[%clk 0:03:02]} 6. Be3 {[%clk 0:03:02]}  Bg7 {[%clk 0:03:02]} 7. f3 {[%clk 0:03:03]}  O-O {[%clk 0:03:03]} 8. Qd2 {[%clk 0:03:03]}  Nc6 {[%clk 0:03:03]} 9. O-O-O {[%clk 0:03:04]}  d5 {[%clk 0:03:04]} 10. Kb1 {[%clk 0:03:04]}  e5 {[%clk 0:03:02]} 11. Nxc6 {[%clk 0:03:04]}  bxc6 {[%clk 0:03:03]} 12. exd5 {[%clk 0:03:04]}  cxd5 {[%clk 0:03:00]} 13. Nxd5 {[%clk 0:03:05]}  Nxd5 {[%clk 0:02:50]} 14. Qxd5 {[%clk 0:03:05]}  Qxd5 {[%clk 0:02:50]} 15. Rxd5 {[%clk 0:03:04]}  Be6 {[%clk 0:02:51]} 16. Rb5 {[%clk 0:02:59]}  f5 {[%clk 0:02:43]} 17. Be2 {[%clk 0:02:47]}  Rfe8 {[%clk 0:02:26]} 18. Rd1 {[%clk 0:02:45]}  f4 {[%clk 0:01:54]} 19. Bf2 {[%clk 0:02:38]}  Bf5 {[%clk 0:01:53]} 20. Bc4+ {[%clk 0:02:35]}  Kh8 {[%clk 0:01:52]} 21. Rb7 {[%clk 0:02:29]}  e4 {[%clk 0:01:43]} 22. fxe4 {[%clk 0:02:24]}  Bxe4 {[%clk 0:01:44]} 23. Rf7 {[%clk 0:01:52]}  Rab8 {[%clk 0:01:10]} 24. Bb3 {[%clk 0:01:48]}  a5 {[%clk 0:00:55]} 25. Rdd7 {[%clk 0:01:43]}  a4 {[%clk 0:00:45]} 26. Rxg7 {[%clk 0:01:41]}  axb3 {[%clk 0:00:32]} 27. Rxh7+ {[%clk 0:01:41]}  Kg8 {[%clk 0:00:31]} 28. Rdg7+ {[%clk 0:01:40]}  Kf8 {[%clk 0:00:31]} 29. Bc5+ {[%clk 0:01:40]}  Re7 {[%clk 0:00:31]} 30. Bxe7+ {[%clk 0:01:38]}  Ke8 {[%clk 0:00:30]} 31. Rg8+ {[%clk 0:01:37]}  Kd7 {[%clk 0:00:29]} 32. Rxb8 {[%clk 0:01:36]}  bxc2+ {[%clk 0:00:26]} 33. Kc1 {[%clk 0:01:37]} 1-0


[Site "https://www.chess.com"]

[Event "Titled Tuesday Blitz July 11 Late 2023"]
[White "Cardenas Carbajal, Nilson"]
[Black "Lopez Gracia, Fernando"]
[WhiteFideId "8401128"]
[BlackFideId "2207184"]
[WhiteElo "2153"]
[BlackElo "2403"]
[Result "0-1"]
[Round "3"]
[TimeControl "180+2"]
[Date "2023.07.11"]
[WhiteClock "0:00:02"]
[BlackClock "0:00:09"]
[Board "177"]

1. e4 {[%clk 0:03:00]}  c5 {[%clk 0:02:49]} 2. d4 {[%clk 0:02:59]}  cxd4 {[%clk 0:02:45]} 3. c3 {[%clk 0:02:58]}  Nf6 {[%clk 0:02:43]} 4. e5 {[%clk 0:02:57]}  Nd5 {[%clk 0:02:44]} 5. Nf3 {[%clk 0:02:55]}  e6 {[%clk 0:02:39]} 6. cxd4 {[%clk 0:02:53]}  d6 {[%clk 0:02:36]} 7. Bc4 {[%clk 0:02:48]}  Nb6 {[%clk 0:02:31]} 8. Bd3 {[%clk 0:02:44]}  Nc6 {[%clk 0:02:30]} 9. Qe2 {[%clk 0:02:39]}  dxe5 {[%clk 0:02:28]} 10. dxe5 {[%clk 0:02:37]}  Be7 {[%clk 0:02:23]} 11. O-O {[%clk 0:02:36]}  O-O {[%clk 0:02:21]} 12. Nc3 {[%clk 0:02:34]}  Re8 {[%clk 0:02:03]} 13. Qe4 {[%clk 0:02:32]}  g6 {[%clk 0:02:03]} 14. h4 {[%clk 0:02:30]}  Nd5 {[%clk 0:01:59]} 15. h5 {[%clk 0:02:26]}  Nxc3 {[%clk 0:01:57]} 16. bxc3 {[%clk 0:02:25]}  Qd5 {[%clk 0:01:56]} 17. hxg6 {[%clk 0:02:08]}  hxg6 {[%clk 0:01:57]} 18. Qe3 {[%clk 0:01:57]}  Bc5 {[%clk 0:01:51]} 19. Qh6 {[%clk 0:01:30]}  Qxd3 {[%clk 0:01:21]} 20. Ng5 {[%clk 0:01:24]}  Qf5 {[%clk 0:01:12]} 21. Be3 {[%clk 0:01:11]}  Bb6 {[%clk 0:00:54]} 22. Rad1 {[%clk 0:00:46]}  Nxe5 {[%clk 0:00:39]} 23. Qh7+ {[%clk 0:00:29]}  Kf8 {[%clk 0:00:37]} 24. Qh6+ {[%clk 0:00:14]}  Ke7 {[%clk 0:00:32]} 25. Nh7 {[%clk 0:00:13]}  Bxe3 {[%clk 0:00:17]} 26. fxe3 {[%clk 0:00:13]}  Qh5 {[%clk 0:00:17]} 27. Qg7 {[%clk 0:00:09]}  Qh4 {[%clk 0:00:04]} 28. Qxf7+ {[%clk 0:00:09]}  Nxf7 {[%clk 0:00:03]} 29. Rxf7+ {[%clk 0:00:08]}  Kxf7 {[%clk 0:00:04]} 30. Rf1+ {[%clk 0:00:07]}  Kg7 {[%clk 0:00:04]} 31. Nf6 {[%clk 0:00:06]}  Qxf6 {[%clk 0:00:05]} 32. Rxf6 {[%clk 0:00:04]}  Kxf6 {[%clk 0:00:06]} 33. g4 {[%clk 0:00:05]}  e5 {[%clk 0:00:07]} 34. Kg2 {[%clk 0:00:06]}  e4 {[%clk 0:00:08]} 35. Kg3 {[%clk 0:00:06]}  Kg5 {[%clk 0:00:09]} 36. c4 {[%clk 0:00:02]}  Bxg4 {[%clk 0:00:09]} 0-1


[Site "https://www.chess.com"]

[Event "Titled Tuesday Blitz July 11 Late 2023"]
[White "Prieto Aranguren, Alain"]
[Black "Miguelitro69"]
[WhiteFideId "2268906"]
[WhiteElo "2402"]
[BlackElo "2125"]
[Result "0-1"]
[Round "3"]
[TimeControl "180+2"]
[Date "2023.07.11"]
[WhiteClock "0:00:19"]
[BlackClock "0:00:34"]
[Board "179"]

1. e4 {[%clk 0:03:00]}  c5 {[%clk 0:03:00]} 2. Nf3 {[%clk 0:03:00]}  Nc6 {[%clk 0:03:01]} 3. Bb5 {[%clk 0:03:00]}  e6 {[%clk 0:03:00]} 4. O-O {[%clk 0:02:58]}  Nge7 {[%clk 0:03:00]} 5. c3 {[%clk 0:02:57]}  a6 {[%clk 0:03:00]} 6. Bd3 {[%clk 0:02:55]}  d5 {[%clk 0:02:59]} 7. Re1 {[%clk 0:02:54]}  d4 {[%clk 0:02:47]} 8. cxd4 {[%clk 0:02:48]}  cxd4 {[%clk 0:02:48]} 9. Qa4 {[%clk 0:02:31]}  Ng6 {[%clk 0:02:39]} 10. Na3 {[%clk 0:02:17]}  e5 {[%clk 0:02:32]} 11. Bc4 {[%clk 0:02:03]}  Be7 {[%clk 0:02:29]} 12. d3 {[%clk 0:01:58]}  O-O {[%clk 0:02:29]} 13. Qd1 {[%clk 0:01:56]}  b5 {[%clk 0:02:26]} 14. Bd5 {[%clk 0:01:50]}  Bd7 {[%clk 0:02:22]} 15. Bd2 {[%clk 0:01:46]}  Rc8 {[%clk 0:02:23]} 16. Rc1 {[%clk 0:01:45]}  Bd6 {[%clk 0:02:10]} 17. Nc2 {[%clk 0:01:43]}  Qe7 {[%clk 0:02:09]} 18. Bg5 {[%clk 0:01:42]}  Qe8 {[%clk 0:02:08]} 19. Qd2 {[%clk 0:01:37]}  Be6 {[%clk 0:02:05]} 20. Bxe6 {[%clk 0:01:26]}  Qxe6 {[%clk 0:02:05]} 21. a3 {[%clk 0:01:24]}  f6 {[%clk 0:02:04]} 22. Bh4 {[%clk 0:01:23]}  f5 {[%clk 0:02:04]} 23. Ng5 {[%clk 0:01:20]}  Qd7 {[%clk 0:01:41]} 24. Na1 {[%clk 0:01:15]}  Nxh4 {[%clk 0:01:40]} 25. Qe2 {[%clk 0:01:07]}  h6 {[%clk 0:01:32]} 26. Nh3 {[%clk 0:00:56]}  Qf7 {[%clk 0:01:30]} 27. g3 {[%clk 0:00:50]}  Qg6 {[%clk 0:01:28]} 28. Kh1 {[%clk 0:00:48]}  fxe4 {[%clk 0:01:18]} 29. gxh4 {[%clk 0:00:45]}  exd3 {[%clk 0:01:19]} 30. Qd2 {[%clk 0:00:45]}  e4 {[%clk 0:01:18]} 31. Rg1 {[%clk 0:00:44]}  Qf5 {[%clk 0:01:15]} 32. Qxh6 {[%clk 0:00:36]}  Be5 {[%clk 0:00:35]} 33. Rxc6 {[%clk 0:00:20]}  Qf3+ {[%clk 0:00:34]} 34. Rg2 {[%clk 0:00:20]}  Qxg2+ {[%clk 0:00:34]} 35. Kxg2 {[%clk 0:00:20]}  gxh6 {[%clk 0:00:35]} 36. Rg6+ {[%clk 0:00:18]}  Kh7 {[%clk 0:00:34]} 37. Re6 {[%clk 0:00:19]}  d2 {[%clk 0:00:34]} 38. f4 {[%clk 0:00:17]}  d1=Q {[%clk 0:00:34]} 39. Rxe5 {[%clk 0:00:18]}  Qg4+ {[%clk 0:00:33]} 40. Kf2 {[%clk 0:00:18]}  Qxh3 {[%clk 0:00:33]} 41. Re7+ {[%clk 0:00:19]}  Kh8 {[%clk 0:00:33]} 42. Re6 {[%clk 0:00:19]}  Rxf4+ {[%clk 0:00:33]} 43. Ke2 {[%clk 0:00:19]}  Qg2+ {[%clk 0:00:33]} 44. Kd1 {[%clk 0:00:19]}  Rf1# {[%clk 0:00:34]} 0-1


[Site "https://www.chess.com"]

[Event "Titled Tuesday Blitz July 11 Late 2023"]
[White "deloewre"]
[Black "Guzman Moneo, Alberto"]
[BlackFideId "2209616"]
[WhiteElo "2124"]
[BlackElo "2401"]
[Result "0-1"]
[Round "3"]
[TimeControl "180+2"]
[Date "2023.07.11"]
[WhiteClock "0:00:00"]
[BlackClock "0:00:01"]
[Board "180"]

1. c4 {[%clk 0:02:59]}  e5 {[%clk 0:02:56]} 2. Nc3 {[%clk 0:02:58]}  Bb4 {[%clk 0:02:55]} 3. Nd5 {[%clk 0:02:57]}  Bc5 {[%clk 0:02:53]} 4. b4 {[%clk 0:02:52]}  Be7 {[%clk 0:02:51]} 5. Bb2 {[%clk 0:02:45]}  c6 {[%clk 0:02:46]} 6. Ne3 {[%clk 0:02:42]}  Bxb4 {[%clk 0:02:39]} 7. Bxe5 {[%clk 0:02:40]}  Nf6 {[%clk 0:02:39]} 8. Nf3 {[%clk 0:02:34]}  O-O {[%clk 0:02:38]} 9. g3 {[%clk 0:02:33]}  Re8 {[%clk 0:02:34]} 10. Bg2 {[%clk 0:02:31]}  Ne4 {[%clk 0:02:29]} 11. Bb2 {[%clk 0:02:20]}  d6 {[%clk 0:02:04]} 12. O-O {[%clk 0:02:16]}  Be6 {[%clk 0:01:59]} 13. d3 {[%clk 0:02:12]}  Nf6 {[%clk 0:01:57]} 14. Qb3 {[%clk 0:02:02]}  Qb6 {[%clk 0:01:55]} 15. Bxf6 {[%clk 0:01:51]}  gxf6 {[%clk 0:01:56]} 16. Qb2 {[%clk 0:01:46]}  f5 {[%clk 0:01:48]} 17. Qf6 {[%clk 0:01:38]}  Qd8 {[%clk 0:01:43]} 18. Qh6 {[%clk 0:01:35]}  Qe7 {[%clk 0:01:32]} 19. Ng5 {[%clk 0:01:28]}  f6 {[%clk 0:01:30]} 20. Nxe6 {[%clk 0:01:26]}  Qxe6 {[%clk 0:01:31]} 21. Bh3 {[%clk 0:01:24]}  Bc5 {[%clk 0:01:23]} 22. Bxf5 {[%clk 0:01:22]}  Qf7 {[%clk 0:01:23]} 23. Ng4 {[%clk 0:01:18]}  Bd4 {[%clk 0:01:19]} 24. e3 {[%clk 0:01:03]}  Bxa1 {[%clk 0:01:17]} 25. Rxa1 {[%clk 0:01:02]}  Rf8 {[%clk 0:01:11]} 26. Nxf6+ {[%clk 0:00:55]}  Kh8 {[%clk 0:01:07]} 27. Bxh7 {[%clk 0:00:44]}  Qg7 {[%clk 0:01:00]} 28. Qh5 {[%clk 0:00:31]}  Rxf6 {[%clk 0:00:58]} 29. Be4+ {[%clk 0:00:22]}  Kg8 {[%clk 0:00:48]} 30. Rb1 {[%clk 0:00:19]}  b6 {[%clk 0:00:39]} 31. f4 {[%clk 0:00:14]}  Kf8 {[%clk 0:00:25]} 32. g4 {[%clk 0:00:12]}  Rh6 {[%clk 0:00:22]} 33. Qf5+ {[%clk 0:00:10]}  Ke7 {[%clk 0:00:18]} 34. g5 {[%clk 0:00:08]}  Re6 {[%clk 0:00:16]} 35. h4 {[%clk 0:00:04]}  Nd7 {[%clk 0:00:03]} 36. h5 {[%clk 0:00:03]}  Rf8 {[%clk 0:00:02]} 37. Qg4 {[%clk 0:00:00]}  Nc5 {[%clk 0:00:01]} 0-1


[Site "https://www.chess.com"]

[Event "Titled Tuesday Blitz July 11 Late 2023"]
[White "Milovic, Aleksandra"]
[Black "ArturoCaceres"]
[WhiteFideId "933988"]
[WhiteElo "2027"]
[BlackElo "2377"]
[Result "1-0"]
[Round "3"]
[TimeControl "180+2"]
[Date "2023.07.11"]
[WhiteClock "0:01:04"]
[BlackClock "0:01:06"]
[Board "185"]

1. d4 {[%clk 0:03:00]}  Nf6 {[%clk 0:02:58]} 2. c4 {[%clk 0:02:59]}  e6 {[%clk 0:02:59]} 3. Nf3 {[%clk 0:02:58]}  b6 {[%clk 0:02:57]} 4. g3 {[%clk 0:02:57]}  Bb7 {[%clk 0:02:40]} 5. Bg2 {[%clk 0:02:57]}  Bb4+ {[%clk 0:02:39]} 6. Bd2 {[%clk 0:02:55]}  Qe7 {[%clk 0:02:29]} 7. O-O {[%clk 0:02:50]}  O-O {[%clk 0:02:28]} 8. a3 {[%clk 0:02:49]}  Bxd2 {[%clk 0:02:25]} 9. Nbxd2 {[%clk 0:02:50]}  d6 {[%clk 0:02:25]} 10. Qc2 {[%clk 0:02:50]}  Nbd7 {[%clk 0:02:20]} 11. e4 {[%clk 0:02:50]}  c5 {[%clk 0:02:18]} 12. d5 {[%clk 0:02:39]}  Ne5 {[%clk 0:02:15]} 13. Nxe5 {[%clk 0:02:38]}  dxe5 {[%clk 0:02:16]} 14. Rfe1 {[%clk 0:02:30]}  Rfd8 {[%clk 0:02:14]} 15. Nf3 {[%clk 0:02:28]}  Nd7 {[%clk 0:02:09]} 16. Rad1 {[%clk 0:02:22]}  exd5 {[%clk 0:02:07]} 17. exd5 {[%clk 0:02:22]}  Qd6 {[%clk 0:02:07]} 18. Qf5 {[%clk 0:02:17]}  Re8 {[%clk 0:02:05]} 19. Ng5 {[%clk 0:02:12]}  Nf6 {[%clk 0:02:02]} 20. Ne4 {[%clk 0:02:07]}  Nxe4 {[%clk 0:02:03]} 21. Bxe4 {[%clk 0:02:06]}  g6 {[%clk 0:02:03]} 22. Qg5 {[%clk 0:02:00]}  Kg7 {[%clk 0:02:01]} 23. Bg2 {[%clk 0:01:59]}  h6 {[%clk 0:02:00]} 24. Qd2 {[%clk 0:01:57]}  f5 {[%clk 0:02:00]} 25. Qc3 {[%clk 0:01:54]}  Kh7 {[%clk 0:01:59]} 26. Rd2 {[%clk 0:01:50]}  Rac8 {[%clk 0:01:57]} 27. Rde2 {[%clk 0:01:50]}  e4 {[%clk 0:01:55]} 28. f3 {[%clk 0:01:50]}  f4 {[%clk 0:01:51]} 29. fxe4 {[%clk 0:01:47]}  fxg3 {[%clk 0:01:50]} 30. Qxg3 {[%clk 0:01:47]}  Qxg3 {[%clk 0:01:49]} 31. hxg3 {[%clk 0:01:48]}  Re5 {[%clk 0:01:49]} 32. Rf1 {[%clk 0:01:43]}  Rc7 {[%clk 0:01:46]} 33. Ref2 {[%clk 0:01:41]}  Kg7 {[%clk 0:01:46]} 34. Rf6 {[%clk 0:01:38]}  Bc8 {[%clk 0:01:36]} 35. Rd6 {[%clk 0:01:33]}  Rd7 {[%clk 0:01:35]} 36. Rff6 {[%clk 0:01:31]}  Rxd6 {[%clk 0:01:35]} 37. Rxd6 {[%clk 0:01:32]}  Bg4 {[%clk 0:01:33]} 38. Rc6 {[%clk 0:01:27]}  Re7 {[%clk 0:01:33]} 39. Kf2 {[%clk 0:01:16]}  Bd7 {[%clk 0:01:30]} 40. Rc7 {[%clk 0:01:11]}  Kf6 {[%clk 0:01:26]} 41. Rxa7 {[%clk 0:01:09]}  Ke5 {[%clk 0:01:27]} 42. Ke3 {[%clk 0:01:07]}  h5 {[%clk 0:01:20]} 43. Bh3 {[%clk 0:01:06]}  Kd6 {[%clk 0:01:13]} 44. Rxd7+ {[%clk 0:01:04]}  Rxd7 {[%clk 0:01:13]} 45. Bxd7 {[%clk 0:01:04]}  Kxd7 {[%clk 0:01:14]} 46. Kf4 {[%clk 0:01:04]}  Ke7 {[%clk 0:01:06]} 47. Kg5 {[%clk 0:01:04]} 1-0


[Site "https://www.chess.com"]